bitfinex/quotes_ETHUSD_20250807
["timestamp","ask_amount","ask_price","bid_price","bid_amount"]
[1754555242044,0.9262,3731.2,3731.0,6.77423475]
[1754555242248,0.9262,3731.2,3730.8,0.1344]
[1754555242560,0.9262,3731.1,3730.8,2.81477206]
[1754555242761,0.9262,3731.1,3730.8,0.1344]
[1754555242962,0.9262,3731.0,3730.9,6.77429703]
[1754555243166,2.69748663,3731.3,3731.0,2.68022497]
[1754555243546,2.69748663,3731.3,3731.1,4.094]
[1754555243780,0.4536,3731.2,3731.1,4.094]
[1754555243983,0.9262,3731.2,3731.1,4.094]
[1754555244482,0.9262,3731.2,3730.9,2.68028924]
[1754555244707,0.9262,3731.1,3731.0,4.094]
[1754555245206,0.9262,3731.1,3730.9,2.68031172]
[1754555245348,0.9262,3731.1,3730.8,0.1344]
[1754555245349,2.69748663,3731.3,3731.0,4.094]
[1754555245807,2.69748663,3731.3,3730.8,0.1344]
[1754555245988,0.9262,3731.2,3730.9,4.094]
[1754555246292,0.9262,3731.2,3730.9,6.77431068]
[1754555246593,0.9262,3731.1,3730.9,6.77431068]
[1754555246795,0.9262,3731.0,3730.8,0.1344]
[1754555247097,0.9262,3731.0,3730.9,6.77431842]
[1754555247594,0.9262,3731.0,3730.9,2.68031842]
[1754555247753,0.9262,3731.0,3730.9,6.77431842]
[1754555248282,3.18168663,3731.3,3731.1,2.68017393]
[1754555248283,0.4536,3731.2,3731.1,2.68017393]
[1754555248458,0.4536,3731.2,3730.9,0.1344]
[1754555248663,0.9262,3731.1,3730.9,2.68027498]
[1754555249007,0.9262,3731.0,3730.9,0.1344]
[1754555249152,0.9262,3731.0,3730.9,6.90871842]
[1754555249351,0.9262,3731.0,3730.9,4.2284]
[1754555249683,0.4726,3731.0,3730.9,6.77431842]
[1754555249883,0.9262,3731.0,3730.9,6.77431842]
[1754555250087,2.69748663,3731.3,3731.0,2.68020721]
[1754555250260,2.69748663,3731.3,3731.1,4.094]
[1754555250466,2.69748663,3731.3,3731.0,2.68020721]
[1754555250790,0.9262,3731.2,3730.9,2.68030883]
[1754555250982,0.9262,3731.2,3731.0,4.094]
[1754555251181,0.9262,3731.1,3730.7,2.81486096]
[1754555251382,0.1344,3731.2,3730.9,2.68028973]
[1754555251592,0.9262,3731.0,3730.9,2.68028973]
[1754555251953,0.9262,3731.0,3730.8,2.68037704]
[1754555252155,0.9262,3731.0,3730.9,6.77431842]
[1754555252355,0.9262,3731.0,3730.8,2.68036138]
[1754555252556,2.69748663,3731.3,3731.2,2.68010291]
[1754555252863,2.69748663,3731.3,3731.2,6.77410291]
[1754555253068,2.69748663,3731.3,3731.2,7.25830291]
[1754555253269,2.69748663,3731.3,3731.2,7.70600291]
[1754555253480,2.69748663,3731.3,3731.2,3.74640291]
[1754555253669,2.69748663,3731.3,3731.2,7.84040291]
[1754555253865,2.69748663,3731.3,3731.2,3.74640291]
[1754555254076,2.69748663,3731.3,3731.2,7.84040291]
[1754555255172,2.69748663,3731.3,3731.2,7.39270291]
[1754555255559,2.69748663,3731.3,3731.2,7.39170291]
[1754555256312,2.69748663,3731.3,3731.2,2.81450291]
[1754555256619,2.69748663,3731.3,3731.2,6.90750291]
[1754555257297,2.69748663,3731.3,3731.2,7.39170291]
[1754555257470,2.69748663,3731.3,3731.2,6.90750291]
[1754555257675,3.62368663,3731.3,3731.2,6.90750291]
[1754555258585,2.69748663,3731.3,3731.2,6.90750291]
[1754555258784,2.69748663,3731.3,3731.2,7.39170291]
[1754555258996,2.69748663,3731.3,3731.2,0.1344]
[1754555259205,3.62368663,3731.3,3731.2,6.90750291]
[1754555259391,3.62368663,3731.3,3731.2,6.77310291]
[1754555259795,3.62368663,3731.3,3731.2,4.093]
[1754555259963,3.62368663,3731.3,3730.7,2.68043253]
[1754555259964,3.75808663,3731.3,3731.1,4.093]
[1754555260164,0.9262,3731.2,3731.1,4.093]
[1754555260833,0.9262,3731.2,3730.7,2.81484412]
[1754555261069,0.9262,3731.1,3730.8,6.7733803]
[1754555261264,2.83188663,3731.3,3730.8,6.7733803]
[1754555261265,0.9262,3731.0,3730.8,6.7733803]
[1754555261480,2.83188663,3731.3,3730.9,2.68031842]
[1754555261686,2.83188663,3731.3,3731.0,6.77324108]
[1754555262103,2.83188663,3731.3,3731.2,2.68010291]
[1754555262289,2.69748663,3731.3,3731.2,6.77310291]
[1754555262495,2.69748663,3731.3,3731.2,2.81450291]
[1754555262678,2.69748663,3731.3,3731.2,7.39170291]
[1754555263004,2.69748663,3731.3,3731.2,7.83940291]
[1754555263299,2.69748663,3731.3,3731.2,8.38940291]
[1754555264409,2.69748663,3731.3,3731.2,4.29640291]
[1754555264623,2.69748663,3731.3,3731.2,8.38940291]
[1754555266890,2.69748663,3731.3,3731.2,7.94170291]
[1754555268413,2.69748663,3731.3,3731.2,8.38940291]
[1754555269602,2.69748663,3731.3,3731.2,7.94170291]
[1754555272185,2.69748663,3731.3,3731.2,7.45750291]
[1754555272694,2.69748663,3731.3,3731.2,7.93700291]
[1754555273002,2.69748663,3731.3,3731.2,7.45750291]
[1754555275025,2.69748663,3731.3,3731.2,2.81450291]
[1754555275202,3.61028663,3731.3,3731.2,4.2264]
[1754555275526,3.61028663,3731.3,3731.2,6.90650291]
[1754555275900,3.13568663,3731.3,3731.2,6.90650291]
[1754555276101,3.13568663,3731.3,3731.2,2.81450291]
[1754555276305,3.61028663,3731.3,3731.2,6.90650291]
[1754555277205,3.61028663,3731.3,3731.2,4.2264]
[1754555277925,3.61028663,3731.3,3731.2,4.092]
[1754555278226,3.74468663,3731.3,3731.2,4.092]
[1754555278792,3.74468663,3731.3,3731.1,4.092]
[1754555278993,0.9128,3731.2,3731.1,4.092]
[1754555279190,2.69748663,3731.3,3731.2,2.68010291]
[1754555279899,2.69748663,3731.3,3731.1,6.90657126]
[1754555280131,2.69748663,3731.3,3731.1,4.2264]
[1754555280431,2.69748663,3731.3,3731.2,2.68010291]
[1754555280631,3.17208663,3731.3,3731.2,2.68010291]
[1754555280840,3.61028663,3731.3,3731.2,2.68010291]
[1754555281515,2.69748663,3731.3,3731.2,2.68010291]
[1754555281697,3.61028663,3731.3,3731.2,2.68010291]
[1754555282100,2.69748663,3731.3,3731.2,3.84400291]
[1754555282326,2.69748663,3731.3,3731.2,3.36450291]
[1754555282519,3.13568663,3731.3,3731.2,2.81450291]
[1754555282740,3.61028663,3731.3,3731.2,2.81450291]
[1754555283044,2.69748663,3731.3,3731.2,2.81450291]
[1754555283403,3.13568663,3731.3,3731.2,2.81450291]
[1754555283755,3.61028663,3731.3,3731.2,2.81450291]
[1754555284050,3.61228663,3731.3,3731.2,2.81450291]
[1754555284836,3.61228663,3731.3,3731.2,6.90650291]
[1754555287345,2.69948663,3731.3,3731.2,3.23010291]
[1754555287504,2.69948663,3731.3,3731.2,8.24500291]
[1754555287957,2.69948663,3731.3,3731.2,6.77210291]
[1754555295157,2.69948663,3731.3,3731.2,17.0429359]
[1754555295534,2.69948663,3731.3,3731.2,7.69500291]
[1754555295920,1e-08,3731.3,3731.2,11.24500291]
[1754555296654,1e-08,3731.3,3731.2,10.80160291]
[1754555297526,1e-08,3731.3,3731.2,10.93600291]
[1754555299238,1e-08,3731.3,3731.2,10.45650291]
[1754555299446,1e-08,3731.3,3731.2,10.93600291]
[1754555300326,1e-08,3731.3,3731.2,9.90650291]
[1754555300525,0.93060001,3731.3,3731.2,9.90650291]
[1754555300777,1e-08,3731.3,3731.2,9.90650291]
[1754555301079,1e-08,3731.3,3731.2,19.8044359]
[1754555301224,1e-08,3731.3,3731.2,20.7423359]
[1754555301645,1e-08,3731.3,3731.2,20.2930359]
[1754555301849,1e-08,3731.3,3731.2,10.45650291]
[1754555302247,1e-08,3731.3,3731.2,10.94510291]
[1754555303053,1e-08,3731.3,3731.2,20.2930359]
[1754555303253,1e-08,3731.3,3731.2,20.7423359]
[1754555305267,1e-08,3731.3,3731.2,20.2930359]
[1754555305443,1e-08,3731.3,3731.2,10.94410291]
[1754555305645,1e-08,3731.3,3731.2,20.7413359]
[1754555312770,1e-08,3731.3,3731.2,20.2920359]
[1754555313370,1e-08,3731.3,3731.2,16.2010359]
[1754555313674,1e-08,3731.3,3731.2,20.2910359]
[1754555314250,1e-08,3731.3,3731.2,26.7290359]
[1754555315686,1e-08,3731.3,3731.2,22.1504359]
[1754555315985,1e-08,3731.3,3731.2,26.2404359]
[1754555316187,1e-08,3731.3,3731.2,26.7290359]
[1754555316849,1e-08,3731.3,3731.2,26.2404359]
[1754555317051,0.4571,3731.7,3731.6,0.55]
[1754555317261,0.002,3731.7,3731.6,4.64]
[1754555317660,0.002,3731.7,3731.6,4.7736]
[1754555317867,0.4571,3731.7,3731.6,4.7736]
[1754555318176,0.002,3732.1,3731.9,0.55]
[1754555318358,0.002,3732.1,3732.0,9.9031284]
[1754555319474,0.002,3732.1,3732.0,10.4531284]
[1754555320252,1e-08,3732.3,3732.2,6.22938481]
[1754555320447,1e-08,3732.3,3732.2,20.2895178]
[1754555320842,1e-08,3732.3,3732.2,19.8009178]
[1754555321076,0.45510001,3732.3,3732.2,10.45298481]
[1754555322005,0.93060001,3732.3,3732.2,10.45298481]
[1754555322206,0.93060001,3732.3,3732.2,6.90298481]
[1754555322611,0.93060001,3732.3,3732.2,2.81298481]
[1754555323125,0.93060001,3732.3,3732.2,6.76938481]
[1754555323544,0.93060001,3732.3,3732.1,3.1336]
[1754555323545,0.93060001,3732.3,3731.8,2.67960596]
[1754555323717,1e-08,3732.3,3732.1,2.67940355]
[1754555324025,0.9306,3732.2,3732.0,2.67946948]
[1754555324225,1e-08,3732.3,3732.1,4.09]
[1754555324595,1e-08,3732.3,3731.9,2.67955499]
[1754555324783,0.9306,3732.2,3732.0,4.09]
[1754555324985,0.9306,3732.1,3731.9,2.6795763]
[1754555325221,0.9306,3732.0,3731.4,2.67988918]
[1754555325401,0.9306,3731.9,3731.5,4.09]
[1754555325583,0.9306,3731.8,3731.5,6.76987628]
[1754555325784,0.9306,3731.7,3731.5,4.09]
[1754555325991,0.1336,3732.0,3731.8,2.67961539]
[1754555326194,0.1336,3732.0,3731.9,4.09]
[1754555326405,0.1336,3732.0,3731.7,2.67972126]
[1754555326691,0.9306,3731.9,3731.8,4.09]
[1754555328539,0.9306,3731.9,3731.8,2.679672]
[1754555328723,0.4551,3731.9,3731.8,2.679672]
[1754555328915,0.4551,3731.9,3731.7,4.09]
[1754555328916,0.9306,3731.9,3731.7,6.76973818]
[1754555329114,0.9306,3731.9,3731.7,4.09]
[1754555329457,0.9306,3731.8,3731.7,4.09]
[1754555331552,2.67979392,3731.7,3731.3,0.1344]
[1754555331756,0.9158,3731.6,3731.4,4.09]
[1754555331960,0.9158,3731.5,3731.4,4.09]
[1754555332119,0.9158,3731.5,3731.1,0.001]
[1754555332315,0.9158,3731.4,3731.1,0.001]
[1754555332622,0.9158,3731.4,3731.2,4.09]
[1754555332822,0.9158,3731.3,3731.2,4.09]
[1754555333945,3.59583108,3731.3,3731.2,4.09]
[1754555334258,0.9158,3731.3,3731.2,4.09]
[1754555334654,3.59583108,3731.3,3731.2,4.09]
[1754555334958,3.59583108,3731.3,3731.1,0.001]
[1754555334959,1.0502,3731.3,3731.1,0.001]
[1754555335156,0.1344,3731.3,3731.1,0.001]
[1754555335336,0.9158,3731.2,3731.1,0.001]
[1754555335732,3.59590291,3731.2,3731.1,0.001]
[1754555336323,0.4389,3731.2,3731.1,0.001]
[1754555336521,0.1336,3731.5,3731.1,0.4951]
[1754555336736,2.81349298,3731.5,3731.1,0.001]
[1754555336962,0.9158,3731.4,3731.1,0.001]
[1754555337564,0.9158,3731.3,3731.1,0.001]
[1754555338159,0.9158,3731.2,3731.1,0.001]
[1754555338323,0.4389,3731.2,3731.1,0.001]
[1754555338524,0.6105,3731.5,3731.1,2.68117474]
[1754555338827,0.9158,3731.4,3731.1,0.001]
[1754555339158,0.1336,3731.5,3731.2,4.09]
[1754555339349,0.5725,3731.5,3731.2,4.09]
[1754555339551,0.5725,3731.5,3731.2,4.5841]
[1754555340358,0.5725,3731.5,3731.2,7.26420216]
[1754555340557,0.1336,3731.5,3731.2,7.26420216]
[1754555340860,0.1336,3731.5,3731.3,2.68002062]
[1754555341358,0.1336,3731.5,3731.2,7.26418296]
[1754555341859,0.5725,3731.5,3731.2,4.09]
[1754555342158,0.9158,3731.4,3731.2,4.09]
[1754555342358,0.1336,3731.5,3731.2,6.77010227]
[1754555342562,0.1336,3731.5,3731.2,4.09]
[1754555342859,0.5725,3731.5,3731.2,4.09]
[1754555343057,0.9158,3731.4,3731.3,4.091]
[1754555343460,0.4389,3731.4,3731.1,6.77217306]
[1754555343704,0.4389,3731.4,3731.1,6.77217105]
[1754555344194,0.1336,3731.5,3731.1,6.77217105]
[1754555344461,0.5725,3731.5,3731.1,4.092]
[1754555344649,0.9158,3731.4,3731.1,4.092]
[1754555344827,0.9158,3731.4,3731.1,6.77217014]
[1754555344828,0.4769,3731.4,3731.1,6.77217014]
[1754555345034,0.4389,3731.3,3731.1,6.77217014]
[1754555345664,0.1336,3731.5,3731.1,4.092]
[1754555345853,0.4389,3731.2,3731.1,4.092]
[1754555346560,0.4769,3731.3,3731.1,4.092]
[1754555346561,0.1336,3731.5,3731.1,4.092]
[1754555346865,0.4389,3731.4,3731.1,6.77217335]
[1754555347064,0.1336,3731.5,3731.1,4.092]
[1754555347363,0.4389,3731.3,3731.1,4.092]
[1754555347760,2.68167712,3731.8,3731.2,2.68010291]
[1754555347761,3.59752932,3731.8,3731.2,2.68010291]
[1754555347967,3.59752932,3731.8,3731.2,0.4941]
[1754555347968,0.1336,3731.6,3731.2,0.4941]
[1754555348361,0.4389,3731.5,3731.1,6.7721721]
[1754555348572,0.4389,3731.5,3731.1,4.5861]
[1754555348761,0.4389,3731.4,3731.1,4.092]
[1754555349169,0.4389,3731.4,3731.1,6.77216072]
[1754555349368,0.4389,3731.4,3731.1,4.092]
[1754555349588,0.1336,3731.6,3731.1,7.26624716]
[1754555349865,0.4389,3731.5,3731.1,7.26624716]
[1754555350032,0.4389,3731.5,3731.2,2.68010217]
[1754555350365,0.4389,3731.5,3731.1,4.5861]
[1754555350565,0.4769,3731.5,3731.1,7.26626995]
[1754555350767,0.4389,3731.4,3731.1,7.26626995]
[1754555350945,0.4389,3731.4,3731.1,4.5861]
[1754555351136,0.4389,3731.4,3731.1,4.092]
[1754555351336,0.4389,3731.4,3731.1,6.77217435]
[1754555351966,0.4389,3731.4,3731.1,7.26627435]
[1754555352346,0.1336,3731.6,3731.2,2.68009605]
[1754555352540,0.5725,3731.6,3731.2,3.17419605]
[1754555352935,0.5725,3731.6,3731.4,2.67991967]
[1754555352936,0.1336,3731.6,3731.4,2.67991967]
[1754555353272,0.002,3731.8,3731.6,2.67975306]
[1754555353442,0.002,3731.8,3731.6,2.67978763]
[1754555353648,0.002,3731.8,3731.7,0.9674]
[1754555354166,0.002,3731.8,3731.7,0.4941]
[1754555355644,0.002,3731.8,3731.7,4.091]
[1754555357552,0.002,3731.8,3731.7,4.5851]
[1754555358258,0.002,3731.8,3731.7,4.091]
[1754555361162,3.118772,3731.8,3731.7,4.091]
[1754555361486,3.604172,3731.8,3731.7,4.091]
[1754555361864,3.604172,3731.8,3731.5,4.091]
[1754555362095,0.9245,3731.8,3731.5,4.091]
[1754555362256,0.4391,3731.8,3731.5,4.091]
[1754555362652,3.11877813,3731.8,3731.5,4.091]
[1754555362852,3.11684698,3731.7,3731.5,4.091]
[1754555363057,0.4371,3731.7,3731.5,4.091]
[1754555363587,0.002,3731.8,3731.5,4.091]
[1754555363793,0.002,3731.8,3731.3,4.09]
[1754555363794,0.9225,3731.7,3731.3,4.09]
[1754555363994,0.1336,3731.6,3731.3,4.09]
[1754555364292,0.4371,3731.5,3731.3,4.09]
[1754555365290,0.1336,3731.4,3731.3,4.09]
[1754555365463,0.1336,3731.4,3731.3,2.80986251]
[1754555367192,2.68007701,3731.3,3731.1,0.001]
[1754555367360,2.81358263,3731.4,3731.1,0.001]
[1754555367772,3.11715802,3731.3,3731.1,0.001]
[1754555367993,3.25068901,3731.4,3731.1,0.001]
[1754555368487,2.81358238,3731.4,3731.1,0.001]
[1754555368690,2.81358238,3731.4,3731.1,0.4629]
[1754555368900,0.1336,3731.4,3731.1,0.4629]
[1754555369058,0.5707,3731.4,3731.1,0.4629]
[1754555369598,2.81357658,3731.4,3731.1,0.001]
[1754555369760,0.4371,3731.3,3731.1,0.001]
[1754555370793,0.9225,3731.2,3731.1,0.001]
[1754555370975,0.4371,3731.2,3731.1,0.001]
[1754555371175,0.5715,3731.2,3731.1,0.001]
[1754555371904,3.25160291,3731.2,3731.1,0.001]
[1754555372058,0.1344,3731.2,3731.1,0.001]
[1754555372261,3.25160291,3731.2,3731.1,0.001]
[1754555372461,3.73700291,3731.2,3731.1,0.001]
[1754555374176,0.1344,3731.2,3731.1,2.68117474]
[1754555374375,0.1344,3731.2,3731.1,7.67567474]
[1754555374868,0.002,3731.8,3731.3,2.67999697]
[1754555375293,2.6817112,3731.8,3731.2,2.6800816]
[1754555375597,2.6817112,3731.8,3731.4,0.9045]
[1754555375960,2.6817112,3731.8,3731.5,0.4619]
[1754555376164,2.6817112,3731.8,3731.4,0.4426]
[1754555376365,2.6817112,3731.8,3731.6,0.4619]
[1754555376603,2.67976327,3731.7,3731.1,6.77114477]
[1754555376793,2.67985904,3731.6,3731.1,4.091]
[1754555376992,0.002,3731.8,3731.2,0.9045]
[1754555377186,0.002,3731.8,3731.3,0.4619]
[1754555377187,2.68170036,3731.8,3731.3,0.4619]
[1754555377401,2.68170036,3731.8,3731.4,0.4426]
[1754555377776,2.68170036,3731.8,3731.5,0.4619]
[1754555377972,2.68170036,3731.8,3731.1,6.7711488]
[1754555378174,2.6797566,3731.7,3731.1,6.7711488]
[1754555378408,2.6797566,3731.7,3731.2,0.4619]
[1754555378707,3.1169206,3731.6,3731.2,0.4619]
[1754555379207,2.6799165,3731.5,3731.2,0.4619]
[1754555379378,2.67990929,3731.5,3731.2,0.4619]
[1754555379574,3.11694325,3731.6,3731.2,0.4619]
[1754555379771,3.11694325,3731.6,3731.1,0.001]
[1754555380019,2.6798908,3731.5,3731.3,0.4619]
[1754555381605,2.6798908,3731.5,3731.1,0.001]
[1754555381820,2.6798908,3731.5,3731.2,0.4619]
[1754555381978,2.6798908,3731.5,3731.1,0.001]
[1754555381979,3.11707919,3731.4,3731.1,0.001]
[1754555382307,6.76992875,3731.5,3731.1,0.001]
[1754555382489,6.76992875,3731.5,3731.2,0.4619]
[1754555383005,3.11701267,3731.5,3731.1,0.001]
[1754555383372,3.11701267,3731.5,3731.1,0.4629]
[1754555383585,4.09,3731.6,3731.1,0.4629]
[1754555383586,0.4854,3731.4,3731.1,0.001]
[1754555383808,4.5754,3731.6,3731.1,0.4629]
[1754555384122,2.6799755,3731.4,3731.2,0.4619]
[1754555384274,4.09,3731.5,3731.2,0.4619]
[1754555384480,2.67996731,3731.4,3731.2,0.4619]
[1754555384926,0.1344,3731.3,3731.2,0.4619]
[1754555385694,2.81443108,3731.3,3731.2,0.4619]
[1754555385922,0.1344,3731.3,3731.2,0.4619]
[1754555387525,2.81443108,3731.3,3731.2,0.4619]
[1754555388530,2.81443108,3731.3,3731.1,0.001]
[1754555389024,2.81443108,3731.3,3731.1,0.4629]
[1754555389195,0.1344,3731.3,3731.1,0.001]
[1754555389399,0.1344,3731.3,3731.2,0.4619]
[1754555390496,4.09,3731.5,3731.2,0.9109]
[1754555390696,0.1336,3731.4,3731.2,0.9109]
[1754555390929,0.1336,3731.4,3731.2,0.449]
[1754555391137,0.1336,3731.4,3731.3,0.4992]
[1754555391634,0.1336,3731.4,3731.1,2.68116016]
[1754555391834,0.1336,3731.4,3731.3,0.4992]
[1754555392449,0.1336,3731.4,3731.3,3.17923108]
[1754555392649,0.1336,3731.4,3731.3,3.62823108]
[1754555392810,0.1336,3731.4,3731.3,7.71823108]
[1754555393216,0.002,3731.8,3731.6,2.67979739]
[1754555393446,0.002,3731.8,3731.4,0.9482]
[1754555393655,0.002,3731.8,3731.7,0.1336]
[1754555394349,0.002,3731.8,3731.7,1.0818]
[1754555395027,0.002,3731.8,3731.7,0.4992]
[1754555395919,0.002,3731.8,3731.7,3.17894381]
[1754555396416,0.002,3731.8,3731.7,0.4992]
[1754555398254,0.002,3731.8,3731.4,2.67994173]
[1754555398454,0.002,3731.8,3731.5,0.4992]
[1754555398455,0.1336,3731.7,3731.5,0.4992]
[1754555398621,0.1336,3731.7,3731.5,3.17908415]
[1754555398817,0.1336,3731.7,3731.6,3.17901562]
[1754555399223,0.002,3731.8,3731.7,2.67974381]
[1754555399448,0.002,3731.8,3731.7,3.12874381]
[1754555399653,0.002,3731.8,3731.7,3.62794381]
[1754555400260,0.002,3731.8,3731.7,0.4992]
[1754555400577,0.002,3731.8,3731.1,0.001]
[1754555400578,1.0355,3731.8,3731.1,0.001]
[1754555400745,2.67986722,3731.6,3731.1,0.1354]
[1754555400946,0.8999,3731.5,3731.1,0.001]
[1754555401263,2.8144636,3731.3,3731.1,0.001]
[1754555401434,0.1344,3731.3,3731.1,0.001]
[1754555401630,0.8999,3731.2,3731.1,0.001]
[1754555401969,3.58000291,3731.2,3731.1,0.001]
[1754555404131,3.10910291,3731.2,3731.1,0.001]
[1754555404352,3.58000291,3731.2,3731.1,0.001]
[1754555404839,0.1344,3731.3,3731.1,0.9492]
[1754555405162,0.1344,3731.3,3731.1,0.5002]
[1754555405327,3.10910291,3731.2,3731.1,0.001]
[1754555405870,0.1344,3731.3,3731.1,0.5002]
[1754555406031,0.1344,3731.3,3731.1,0.001]
[1754555406232,2.81444278,3731.3,3731.1,0.001]
[1754555406464,0.1344,3731.3,3731.1,0.001]
[1754555406823,0.5634,3731.3,3731.1,0.001]
[1754555407029,1.0343,3731.3,3731.1,0.001]
[1754555407250,0.5634,3731.3,3731.1,0.001]
[1754555407463,2.68010291,3731.2,3731.1,0.001]
[1754555407925,0.429,3731.2,3731.1,0.001]
[1754555408122,0.1344,3731.3,3731.1,0.001]
[1754555408322,2.81446595,3731.3,3731.1,0.001]
[1754555408775,0.8999,3731.7,3731.1,0.001]
[1754555409071,2.67996976,3731.4,3731.1,0.001]
[1754555409228,0.1344,3731.2,3731.1,0.5002]
[1754555410257,0.1344,3731.2,3731.1,0.001]
[1754555410852,0.5634,3731.2,3731.1,0.001]
[1754555411477,0.1344,3731.2,3731.1,0.001]
[1754555411878,3.24350291,3731.2,3731.1,0.001]
[1754555412073,3.71440291,3731.2,3731.1,0.001]
[1754555412305,1.0343,3731.2,3731.1,0.001]
[1754555412456,0.1344,3731.2,3731.1,0.001]
[1754555416271,2.81450291,3731.2,3731.1,0.001]
[1754555416718,3.24350291,3731.2,3731.1,0.001]
[1754555416898,3.71440291,3731.2,3731.1,0.001]
[1754555417801,3.24350291,3731.2,3731.1,0.001]
[1754555418012,3.71440291,3731.2,3731.1,0.001]
[1754555420206,7.80440291,3731.2,3731.1,0.001]
[1754555420619,6.90450291,3731.2,3731.1,0.001]
[1754555421083,7.35590291,3731.2,3731.1,0.001]
[1754555421616,7.84860291,3731.2,3731.1,0.001]
[1754555422219,7.35590291,3731.2,3731.1,0.001]
[1754555423330,3.75860291,3731.2,3731.1,0.001]
[1754555423532,6.90450291,3731.2,3731.1,0.001]
[1754555423740,7.84860291,3731.2,3731.1,0.001]
[1754555424592,6.90450291,3731.2,3731.1,0.001]
[1754555424794,0.1344,3731.2,3731.1,0.001]
[1754555425030,0.1344,3731.2,3731.1,0.907]
[1754555425691,2.81450291,3731.2,3731.1,0.001]
[1754555426092,3.26590291,3731.2,3731.1,0.001]
[1754555426298,2.81450291,3731.2,3731.1,0.001]
[1754555428006,2.81450291,3731.2,3730.9,0.4759]
[1754555428007,2.68024658,3731.0,3730.9,0.44677124]
[1754555428236,2.68031842,3730.9,3730.8,0.001]
[1754555428731,2.81465104,3731.0,3730.8,0.001]
[1754555429234,0.1344,3731.0,3730.9,0.4311]
[1754555429541,2.81464658,3731.0,3730.9,0.4311]
[1754555429706,0.1344,3731.0,3730.8,0.001]
[1754555430135,0.1344,3731.0,3730.9,0.4749]
[1754555430853,2.81464658,3731.0,3730.9,0.4749]
[1754555431271,0.1344,3731.0,3730.9,0.4749]
[1754555432525,0.1344,3731.0,3730.9,0.906]
[1754555433623,0.1336,3731.4,3730.9,3.72071694]
[1754555433958,0.1336,3731.4,3731.0,0.906]
[1754555434339,0.1336,3731.4,3731.1,0.906]
[1754555434666,2.93118494,3731.8,3731.2,3.72050086]
[1754555434963,5.0341,3731.7,3730.8,0.001]
[1754555435265,2.68031842,3730.9,3730.8,0.001]
[1754555435419,2.68025393,3731.0,3730.8,0.001]
[1754555435624,2.68015701,3731.2,3730.8,0.4759]
[1754555435820,4.09,3731.4,3730.8,0.4759]
[1754555435821,2.68018072,3731.1,3730.8,0.907]
[1754555436023,2.68025949,3731.0,3730.8,0.4759]
[1754555436260,6.76996586,3731.4,3730.9,0.4749]
[1754555436461,2.68017078,3731.2,3731.0,0.4749]
[1754555436763,0.25128792,3731.1,3731.0,0.4749]
[1754555436963,2.93146266,3731.1,3731.0,0.4749]
[1754555437468,0.25128792,3731.1,3731.0,0.4749]
[1754555437766,2.93146266,3731.1,3731.0,0.4749]
[1754555438626,2.93146266,3731.1,3730.8,0.001]
[1754555438850,2.68024658,3731.0,3730.8,0.001]
[1754555439053,2.68024658,3731.0,3730.8,0.4759]
[1754555439828,2.68019301,3731.1,3730.8,0.4759]
[1754555440631,0.25130619,3731.0,3730.8,0.4759]
[1754555440958,2.68024658,3731.0,3730.9,0.4749]
[1754555441165,2.68031842,3730.9,3730.8,0.001]
[1754555441326,3.38302461,3730.9,3730.8,0.001]
[1754555441722,0.25130619,3730.9,3730.8,0.001]
[1754555442164,2.93162461,3730.9,3730.8,0.001]
[1754555442346,3.38302461,3730.9,3730.8,0.001]
[1754555442540,3.87572461,3730.9,3730.8,0.001]
[1754555442727,3.38302461,3730.9,3730.8,0.001]
[1754555443352,2.93162461,3730.9,3730.8,0.001]
[1754555444485,4.74204967,3730.9,3730.8,0.001]
[1754555444685,4.35062461,3730.9,3730.8,0.001]
[1754555445166,4.48502461,3730.9,3730.8,0.001]
[1754555445879,2.68039026,3730.8,3730.7,0.001]
[1754555446083,7.96579645,3730.8,3730.7,0.001]
[1754555446228,7.96579645,3730.8,3730.4,0.001]
[1754555446229,2.68060581,3730.5,3730.4,0.001]
[1754555446435,7.15635824,3730.5,3730.4,0.001]
[1754555446746,8.10045824,3730.5,3730.4,0.001]
[1754555447166,8.10045824,3730.5,3730.3,0.001]
[1754555447167,2.68067767,3730.4,3730.3,0.001]
[1754555447354,33.8761301,3730.4,3730.3,0.001]
[1754555447663,3.23074953,3730.3,3730.2,1e-08]
[1754555447832,2.6808214,3730.2,3730.1,1e-08]
[1754555448037,5.68089327,3730.1,3730.0,1e-08]
[1754555448230,5.68089327,3730.1,3729.6,0.001]
[1754555448231,5.68096514,3730.0,3729.9,1e-08]
[1754555448542,36.62506514,3730.0,3729.9,1e-08]
[1754555448751,35.68096514,3730.0,3729.9,1e-08]
[1754555448959,36.87623285,3730.0,3729.9,1e-08]
[1754555449262,3.0,3729.8,3729.6,0.001]
[1754555449454,36.77318079,3729.7,3729.6,0.001]
[1754555449855,37.71728079,3729.7,3729.6,1e-08]
[1754555450051,37.71828079,3729.7,3729.6,1e-08]
[1754555450254,40.71828079,3729.7,3729.6,1e-08]
[1754555450838,40.96917385,3729.7,3729.6,1e-08]
[1754555451257,41.26828079,3729.7,3729.6,1e-08]
[1754555451942,41.5189982,3729.7,3729.6,1e-08]
[1754555452234,41.51884998,3729.7,3729.6,1e-08]
[1754555453211,5.93174998,3729.7,3729.6,1e-08]
[1754555453358,9.77318079,3729.7,3729.6,1e-08]
[1754555453707,9.77518079,3729.7,3729.6,0.46670001]
[1754555454403,9.77518079,3729.7,3729.6,1e-08]
[1754555454404,10.58119379,3729.7,3729.6,1e-08]
[1754555456457,10.58119379,3729.7,3729.6,0.90070001]
[1754555456458,4.899013,3729.7,3729.6,0.90070001]
[1754555457085,4.093,3729.7,3729.6,0.90070001]
[1754555457790,2.81558079,3729.7,3729.6,0.90070001]